bitfinex/quotes_ETHUSD_20260217
["timestamp","ask_amount","ask_price","bid_price","bid_amount"]
[1771344459791,0.46684795,1996.0,1994.5,1.25342751]
[1771344460010,0.46684795,1995.9,1994.4,2.70646548]
[1771344460189,19.325787,1996.1,1994.4,2.70646548]
[1771344460190,1.08484795,1995.8,1994.4,2.70646548]
[1771344460393,0.46684795,1995.7,1994.4,2.70646548]
[1771344461261,1.25275606,1995.6,1994.4,2.70646548]
[1771344462214,8.82322969,1996.0,1994.4,2.70646548]
[1771344462363,5.01004069,1996.0,1994.4,2.70646548]
[1771344463097,5.47688864,1996.0,1994.4,2.70646548]
[1771344463265,0.46684795,1995.9,1994.4,2.70646548]
[1771344463674,5.01004069,1996.0,1994.4,2.70646548]
[1771344463675,1.719102,1996.4,1994.6,0.46177492]
[1771344463884,1.719102,1996.4,1994.9,12.494279]
[1771344464085,1.25225405,1996.4,1995.0,0.55]
[1771344464285,1.25225405,1996.4,1995.1,0.55]
[1771344465285,1.25224261,1996.5,1995.1,0.55]
[1771344465883,5.48062077,1996.6,1995.2,1.25300721]
[1771344466682,0.47197868,1996.4,1995.2,1.25300721]
[1771344467210,5.00864209,1996.6,1995.2,1.25300721]
[1771344467396,5.4787695,1997.3,1995.4,0.48696149]
[1771344467597,0.0011,1996.8,1995.6,0.48696149]
[1771344467796,0.0011,1996.8,1995.7,0.549]
[1771344468813,0.47307868,1996.8,1995.3,5.01177115]
[1771344468980,0.47307868,1996.8,1995.4,18.004237]
[1771344468981,0.0011,1996.8,1995.4,18.004237]
[1771344469322,0.0011,1996.8,1995.4,0.48696149]
[1771344469809,0.0011,1996.8,1995.3,5.01177115]
[1771344470427,1.2531032,1996.8,1995.3,5.01177115]
[1771344470586,1.2531032,1996.8,1995.3,5.49873264]
[1771344471827,0.0011,1996.8,1995.4,0.48696149]
[1771344472042,0.0011,1996.8,1995.5,13.76033724]
[1771344472186,0.0011,1996.8,1995.5,0.49291124]
[1771344472726,0.0011,1996.8,1995.6,1.7456673]
[1771344472898,0.0011,1996.8,1995.7,0.903]
[1771344473093,0.0011,1996.8,1995.8,0.547]
[1771344474618,0.0011,1996.8,1995.8,1.79957312]
[1771344477298,0.0011,1996.8,1995.9,0.49291124]
[1771344477512,0.0011,1996.8,1995.8,1.79957312]
[1771344478532,0.0011,1996.8,1995.9,0.49291124]
[1771344478749,0.0011,1996.8,1995.8,1.79957312]
[1771344479505,0.45254727,1996.8,1995.7,0.548]
[1771344480216,7.09102929,1996.8,1995.7,0.548]
[1771344480412,7.09102929,1996.8,1995.2,1.25294441]
[1771344480413,0.45144727,1996.6,1995.2,0.548]
[1771344480620,6.46878927,1996.3,1995.2,0.548]
[1771344480822,0.45144727,1996.2,1994.8,2.70425847]
[1771344481025,0.0011,1996.8,1994.8,2.70425847]
[1771344481026,0.45144727,1996.6,1994.8,3.19716971]
[1771344481332,0.0011,1996.8,1995.4,0.001]
[1771344481516,0.0011,1996.8,1995.5,1.451]
[1771344481717,0.45254727,1996.7,1995.4,0.001]
[1771344482024,0.0011,1996.7,1995.4,0.001]
[1771344482222,0.0011,1996.7,1995.4,0.49391124]
[1771344483411,0.0011,1996.7,1995.5,1.25281884]
[1771344484818,0.0011,1996.7,1995.4,5.01227536]
[1771344484819,0.45254727,1996.7,1995.4,1.2538668]
[1771344485033,3.400936,1996.5,1995.4,1.25388067]
[1771344485260,3.85238327,1996.5,1995.4,0.001]
[1771344485421,1.25237952,1996.2,1995.4,0.001]
[1771344485739,0.45144727,1996.1,1995.4,0.001]
[1771344485939,0.45144727,1996.1,1994.8,5.56093528]
[1771344485940,0.45144727,1996.0,1994.8,0.548]
[1771344486140,7.51762278,1996.1,1994.8,1.25325353]
[1771344486369,0.45144727,1995.8,1994.7,0.001]
[1771344486522,0.45144727,1995.8,1994.0,1.505]
[1771344486523,7.06617551,1994.6,1993.5,0.001]
[1771344486715,9.225277,1993.9,1993.5,0.001]
[1771344486914,9.225277,1993.9,1993.5,1.25505038]
[1771344487219,0.612,1994.7,1993.5,0.001]
[1771344487526,1.25344697,1994.5,1993.5,0.001]
[1771344487845,18.768616,1994.1,1993.5,0.001]
[1771344488043,5.035438,1994.1,1993.5,0.001]
[1771344489123,5.035438,1994.1,1992.9,1.25444454]
[1771344489332,0.613,1994.0,1992.8,1.25448264]
[1771344489625,1.25382416,1993.9,1992.7,5.01825601]
[1771344490347,6.65574447,1994.5,1992.7,5.01825601]
[1771344490348,0.45144727,1994.7,1992.7,5.51116725]
[1771344490523,8.345986,1994.5,1992.7,5.51116725]
[1771344490717,1.25338413,1994.6,1992.9,0.49291124]
[1771344490923,1.25338413,1994.6,1992.7,5.01825601]
[1771344490924,1.25338413,1994.6,1993.1,0.49291124]
[1771344491151,1.25338413,1994.6,1993.2,1.453]
[1771344491569,1.7048314,1994.6,1993.2,1.453]
[1771344491858,1.25338413,1994.6,1993.3,1.25420157]
[1771344492359,1.25288162,1995.4,1993.6,6.36552]
[1771344492523,1.25288162,1995.4,1993.9,0.49291124]
[1771344492714,1.25288162,1995.4,1994.0,1.453]
[1771344493118,1.25288162,1995.4,1994.0,1.94591124]
[1771344493340,1.25288162,1995.4,1993.6,6.6501802]
[1771344493341,0.45144727,1995.2,1993.6,0.55]
[1771344493548,0.612,1995.1,1993.6,0.55]
[1771344493760,0.612,1995.1,1993.7,1.25394994]
[1771344493761,1.25313283,1995.0,1993.7,1.25394994]
[1771344494168,1.25313283,1995.0,1993.6,5.56579976]
[1771344494169,6.062054,1994.9,1993.6,0.55]
[1771344494488,4.3206,1994.8,1993.6,1.80400805]
[1771344494769,1.515,1994.8,1993.6,1.80400805]
[1771344495527,0.612,1994.9,1993.6,1.80400805]
[1771344495851,1.2533213,1994.7,1993.8,0.001]
[1771344496568,5.0132852,1995.0,1993.8,0.001]
[1771344496569,0.611,1995.0,1993.8,0.001]
[1771344497137,2.008652,1995.1,1993.8,0.001]
[1771344497339,0.611,1995.0,1993.8,0.001]
[1771344498254,1.25319564,1994.9,1993.8,0.001]
[1771344498962,1.75079207,1994.9,1993.8,0.001]
[1771344499176,0.49759643,1994.8,1993.8,0.001]
[1771344499561,0.49759643,1994.6,1993.8,0.001]
[1771344499734,19.308266,1994.7,1993.7,0.001]
[1771344499735,0.49759643,1994.7,1993.7,0.001]
[1771344500080,3.723148,1994.6,1993.7,0.001]
[1771344500371,1.86444697,1994.5,1993.7,0.001]
[1771344500773,0.49759643,1994.4,1993.7,0.001]
[1771344500937,1.25344697,1994.5,1993.7,0.001]
[1771344501138,1.86444697,1994.5,1993.7,0.001]
[1771344502165,0.49759643,1995.3,1993.7,0.001]
[1771344502369,5.01192779,1995.3,1993.8,0.547]
[1771344502670,12.295507,1994.9,1993.7,0.904]
[1771344503003,5.259255,1994.7,1993.7,0.904]
[1771344503163,0.611,1994.8,1993.7,0.904]
[1771344503595,26.77180363,1994.7,1993.7,0.904]
[1771344503759,2.15,1994.5,1993.7,0.001]
[1771344504093,20.12162343,1994.2,1993.5,0.001]
[1771344504262,4.61438,1993.9,1992.9,1.45]
[1771344504461,0.611,1993.8,1992.9,1.45]
[1771344504691,0.611,1993.8,1992.7,5.01826004]
[1771344504692,1.25376128,1994.0,1992.7,1.25455421]
[1771344505002,1.25376128,1994.0,1992.5,0.001]
[1771344505003,0.49759643,1993.6,1992.5,0.001]
[1771344505296,4.78858,1993.4,1992.5,0.001]
[1771344505603,4.78858,1993.4,1992.5,1.25569672]
[1771344505604,0.611,1993.3,1992.5,1.25569672]
[1771344505901,0.611,1993.3,1992.5,0.001]
[1771344506402,0.49759643,1993.6,1992.5,0.001]
[1771344506403,1.25407574,1993.5,1992.5,0.001]
[1771344508362,0.612,1993.5,1992.5,0.001]
[1771344509261,0.49759643,1993.9,1992.5,0.001]
[1771344509466,0.612,1993.6,1992.5,0.001]
[1771344510388,1.25407574,1993.5,1992.6,0.001]
[1771344510812,1.25399743,1993.7,1992.6,0.001]
[1771344511005,0.611,1993.4,1992.6,0.001]
[1771344511907,9.24054243,1993.3,1992.6,0.001]
[1771344512108,2.02298,1993.2,1992.6,0.001]
[1771344512312,0.611,1993.1,1992.6,0.001]
[1771344512604,1.25439036,1993.0,1992.6,0.001]
[1771344514003,0.611,1993.4,1992.6,0.001]
[1771344514579,1.25401284,1993.6,1992.6,0.001]
[1771344514904,2.91827677,1993.5,1992.6,0.001]
[1771344515081,0.611,1993.5,1992.6,0.001]
[1771344515277,1.25401284,1993.6,1992.6,0.001]
[1771344515892,1.86501284,1993.6,1992.6,0.001]
[1771344516480,1.86501284,1993.6,1992.3,1.09372743]
[1771344516681,1.86501284,1993.6,1992.4,1.25476811]
[1771344516881,2.98530308,1993.5,1992.4,1.25476811]
[1771344517083,3.59730308,1993.5,1992.4,1.25476811]
[1771344517379,1.25401284,1993.6,1992.4,1.25476811]
[1771344517577,2.98525201,1993.5,1992.4,1.25476811]
[1771344517776,0.611,1993.4,1992.2,1.25584753]
[1771344517979,2.98552748,1993.3,1992.2,1.25584753]
[1771344518216,0.611,1993.4,1992.2,1.25584753]
[1771344518421,22.60909804,1993.3,1992.2,0.001]
[1771344518638,2.98507104,1993.2,1992.2,0.001]
[1771344519204,1.25432742,1993.1,1992.2,0.001]
[1771344519383,2.98507104,1993.0,1992.2,0.001]
[1771344519584,1.25432742,1993.1,1992.2,0.001]
[1771344520748,1.86531494,1993.2,1992.2,0.001]
[1771344521798,1.25431494,1993.2,1992.2,0.001]
[1771344521998,1.25382416,1993.9,1992.3,0.48672743]
[1771344522198,3.59284837,1993.8,1992.3,0.48672743]
[1771344522399,2.98284837,1993.7,1992.3,0.48672743]
[1771344523231,1.86382416,1993.9,1992.3,0.48672743]
[1771344523424,3.59593949,1993.8,1992.5,0.48572743]
[1771344523636,0.61,1993.8,1992.6,0.543]
[1771344524003,0.61,1993.8,1992.3,5.02007247]
[1771344524004,7.14777663,1993.6,1992.3,0.001]
[1771344524202,2.98584325,1993.5,1992.4,0.48572743]
[1771344524409,5.97163371,1994.4,1992.6,0.49168539]
[1771344524410,1.25357268,1994.3,1992.6,0.49168539]
[1771344524747,1.25357268,1994.3,1992.8,0.49168539]
[1771344524918,8.80997,1994.2,1992.8,0.49168539]
[1771344525229,1.25357268,1994.3,1992.8,0.49168539]
[1771344525531,4.81,1994.2,1992.9,1.2544533]
[1771344525706,4.81,1994.2,1992.7,5.56081323]
[1771344525707,5.29107337,1994.2,1992.7,0.543]
[1771344525906,17.862005,1994.1,1992.7,1.79753538]
[1771344526120,5.163552,1994.1,1992.7,1.79753538]
[1771344526428,3.130652,1994.1,1992.7,1.79753538]
[1771344526728,0.48107337,1994.0,1992.4,0.49168539]
[1771344527029,3.130652,1994.1,1992.3,1.25578131]
[1771344527030,20.10510037,1993.6,1992.3,1.25578131]
[1771344527229,6.343088,1993.5,1992.3,1.25578131]
[1771344527426,1.25413865,1993.4,1992.3,1.25578131]
[1771344529426,5.01655463,1993.5,1992.3,1.25578131]
[1771344530130,5.62755463,1993.5,1992.3,1.25578131]
[1771344531517,5.62755463,1993.5,1992.3,1.79878131]
[1771344532028,5.62755463,1993.5,1992.3,1.79880189]
[1771344533719,3.62238,1993.3,1992.3,1.25581365]
[1771344534030,3.62238,1993.3,1992.3,1.25581751]
[1771344534230,0.46216588,1993.4,1992.3,1.25581751]
[1771344534534,0.46216588,1993.4,1992.4,0.001]
[1771344534831,5.01655463,1993.5,1992.4,0.001]
[1771344535201,0.0011,1993.4,1992.4,0.001]
[1771344536333,0.0011,1993.4,1992.4,0.457633]
[1771344536908,0.0011,1993.4,1992.5,1.448]
[1771344537108,0.0011,1993.4,1992.6,0.544]
[1771344537449,0.0011,1993.4,1992.5,0.544]
[1771344537804,0.0011,1993.4,1992.6,1.25464217]
[1771344538552,0.0011,1993.4,1992.5,0.544]
[1771344538709,0.0011,1993.4,1992.5,1.79869759]
[1771344538904,0.0011,1993.4,1992.4,5.0200656]
[1771344538905,0.0011,1993.4,1992.4,0.001]
[1771344539126,0.611,1993.3,1992.4,0.545]
[1771344539433,1.07316588,1993.3,1992.4,0.545]
[1771344540346,1.25426449,1993.2,1992.4,0.545]
[1771344540636,1.25426449,1993.2,1992.4,0.001]
[1771344540637,1.71643037,1993.2,1992.4,0.001]
[1771344540814,0.611,1993.1,1992.4,0.001]
[1771344541008,1.2542129,1993.3,1992.4,1.25576451]
[1771344541338,1.25527589,1993.4,1992.5,0.543]
[1771344541936,2.75799483,1993.3,1992.5,0.543]
[1771344542138,1.25432742,1993.1,1992.4,0.001]
[1771344542437,2.75799483,1993.0,1992.4,0.001]
[1771344542640,2.75799483,1992.9,1992.4,0.001]
[1771344542941,2.75799483,1992.8,1992.3,0.001]
[1771344543107,2.75799483,1992.8,1992.2,0.001]
[1771344543108,3.83116071,1992.7,1992.2,0.001]
[1771344543305,2.75799483,1992.6,1992.2,0.001]
[1771344543539,2.75799483,1992.5,1992.2,0.001]
[1771344543832,2.75799483,1992.4,1992.2,0.001]
[1771344544064,2.75799483,1992.3,1992.0,0.001]
[1771344544208,2.75799483,1992.3,1991.8,0.001]
[1771344544209,4.01288891,1992.2,1991.8,0.001]
[1771344544537,2.75799483,1992.1,1991.8,0.001]
[1771344544747,1.25489408,1992.2,1991.8,0.001]
[1771344544925,2.75513551,1992.1,1991.8,0.001]
[1771344545609,2.75513551,1992.0,1991.3,0.26234726]
[1771344545808,2.75513551,1991.9,1991.4,0.001]
[1771344546052,2.75513551,1991.8,1991.4,0.001]
[1771344546216,1.25514609,1991.8,1991.0,0.001]
[1771344546417,1.86714609,1991.8,1991.0,0.001]
[1771344547148,2.75031777,1991.7,1991.0,0.001]
[1771344547325,0.612,1991.6,1991.0,0.001]
[1771344547523,2.7469151,1991.5,1991.0,0.001]
[1771344547723,6.890111,1991.3,1989.8,0.542]
[1771344548020,2.7469151,1991.5,1989.9,0.456633]
[1771344548021,3.3599151,1991.2,1989.9,0.456633]
[1771344548223,3.3599151,1991.2,1989.7,5.02573546]
[1771344548224,27.52979456,1991.1,1989.7,5.02573546]
[1771344548426,3.20517968,1991.0,1989.5,0.542]
[1771344548631,7.90576756,1991.1,1989.5,0.542]
[1771344548632,2.7430138,1990.9,1989.6,1.71316697]
[1771344548828,2.7430138,1990.9,1989.7,0.456633]
[1771344548829,0.613,1990.9,1989.7,0.456633]
[1771344549339,1.25558736,1991.1,1989.9,0.456633]
[1771344549739,1.25558736,1991.1,1991.0,0.001]
[1771344549916,0.613,1991.4,1991.0,0.001]
[1771344550316,0.613,1991.4,1989.9,0.456633]
[1771344550535,11.81636625,1991.3,1989.9,1.71293587]
[1771344550841,11.81636625,1991.3,1989.3,0.456633]
[1771344550842,6.6501802,1990.7,1989.3,0.456633]
[1771344551064,3.730558,1991.0,1989.3,0.456633]
[1771344551221,0.613,1990.7,1989.3,0.456633]
[1771344551423,0.613,1990.8,1989.3,0.456633]
[1771344552062,5.89488888,1990.7,1989.1,1.25684983]
[1771344552235,10.167391,1990.6,1989.1,1.71348283]
[1771344552420,1.25596583,1990.5,1989.1,2.25448283]
[1771344552621,1.25596583,1990.5,1989.2,0.456633]
[1771344552918,5.02236337,1991.1,1989.3,0.18685624]
[1771344553118,1.86865042,1991.0,1989.4,0.456633]
[1771344553567,2.3308163,1991.0,1989.4,0.456633]
[1771344553771,0.46216588,1990.9,1989.4,0.456633]
[1771344554086,19.624027,1990.8,1989.1,1.25684983]
[1771344554217,1.86865042,1991.0,1989.1,1.25684983]
[1771344554218,12.045164,1990.6,1989.3,0.541]
[1771344554419,1.25602893,1990.4,1989.3,1.25669853]
[1771344554656,1.25602893,1990.4,1989.2,1.25677879]
[1771344554862,1.25602893,1990.4,1989.3,0.49615823]
[1771344555417,5.02337212,1990.7,1989.3,0.49615823]
[1771344555418,1.25583965,1990.7,1989.3,0.49615823]
[1771344555969,1.25583965,1990.7,1989.2,7.93518169]
[1771344555970,3.00418,1991.4,1989.8,0.49615823]
[1771344556251,0.45645927,1991.4,1989.9,1.446]
[1771344556429,0.45645927,1991.4,1989.9,1.94215823]
[1771344556753,1.25546125,1991.3,1990.0,1.2562814]
[1771344556950,1.25546125,1991.3,1990.0,1.7972814]
[1771344558732,1.71192052,1991.3,1990.0,1.7972814]
[1771344558927,1.71192052,1991.3,1990.0,1.5932814]
[1771344559128,1.25546125,1991.3,1990.1,7.17456113]
[1771344559334,4.03600508,1992.0,1990.2,0.49615823]
[1771344559534,1.25502008,1992.0,1990.2,0.49615823]
[1771344559759,2.089301,1991.9,1990.2,0.49615823]
[1771344559961,1.25502008,1992.0,1990.4,0.49615823]
[1771344560175,1.25483109,1992.3,1990.7,0.49615823]
[1771344560327,1.25483109,1992.3,1990.6,0.49615823]
[1771344560328,0.45645927,1992.1,1990.6,0.49615823]
[1771344560526,1.25483109,1992.3,1990.6,0.49615823]
[1771344560746,0.613,1992.2,1990.6,0.49615823]
[1771344561157,4.168858,1992.0,1990.7,1.25583965]
[1771344561364,1.25495708,1992.1,1990.7,1.75199788]
[1771344561643,1.25476811,1992.4,1991.0,0.49615823]
[1771344561834,0.0011,1991.7,1991.1,0.541]
[1771344562438,0.0011,1991.7,1990.7,1.25583965]
[1771344562763,0.0011,1991.7,1990.9,0.541]
[1771344563641,13.674367,1991.3,1990.1,0.001]
[1771344563853,0.612,1991.2,1990.1,0.001]
[1771344564229,1.06845927,1991.2,1990.1,0.001]
[1771344564431,0.45645927,1991.1,1990.1,0.001]
[1771344565040,8.563192,1991.0,1990.1,0.001]
[1771344565354,1.86771349,1990.9,1990.1,0.001]
[1771344566262,0.45645927,1990.7,1990.1,0.001]
[1771344566556,0.612,1990.7,1990.1,0.001]
[1771344566852,1.25571349,1990.9,1990.1,0.001]
[1771344567242,5.47781252,1991.5,1990.2,0.905]
[1771344567243,1.25539821,1991.4,1990.2,0.905]
[1771344567545,1.25539821,1991.4,1990.1,1.446]
[1771344568135,5.526925,1991.2,1990.1,1.446]
[1771344568353,2.56128,1991.1,1990.1,1.446]
[1771344568548,0.613,1991.1,1990.1,1.446]
[1771344569057,1.86839821,1991.4,1990.1,1.94215823]
[1771344569260,1.25539821,1991.4,1990.2,1.25615516]
[1771344569427,1.25539821,1991.4,1990.2,1.79615516]
[1771344569736,3.93445927,1991.3,1990.1,0.001]
[1771344569942,0.45645927,1991.3,1990.1,1.25721618]
[1771344570235,0.613,1991.2,1990.1,0.001]
[1771344571059,0.613,1991.2,1990.1,1.25721489]
[1771344571235,1.25558736,1991.1,1990.1,0.001]
[1771344572931,19.624027,1990.9,1990.1,0.001]
[1771344573135,5.02234945,1991.3,1990.1,0.001]
[1771344573136,1.25583965,1990.7,1990.1,0.001]
[1771344574471,1.8695243,1991.3,1990.1,1.03615823]
[1771344574664,1.25545042,1991.4,1990.2,0.49615823]
[1771344575030,2.63790822,1991.3,1990.1,0.001]
[1771344575363,2.63790822,1991.3,1990.3,0.49615823]
[1771344575690,1.25531383,1991.6,1990.3,0.49615823]
[1771344577675,0.0011,1991.7,1990.4,1.25602893]
[1771344577961,0.0011,1991.7,1990.7,0.49615823]
[1771344578135,0.0011,1991.7,1990.8,1.444]
[1771344578339,0.0011,1991.7,1990.9,0.49615823]
[1771344578537,1.25612386,1992.0,1991.0,0.49615823]
[1771344578951,1.25612386,1992.0,1991.0,0.539]
[1771344579343,1.25612548,1992.0,1991.0,0.539]
[1771344579552,1.25613626,1992.0,1991.0,0.539]
[1771344579752,1.25613626,1992.0,1991.1,1.25558736]
[1771344579949,0.0011,1992.0,1991.3,0.49615823]
[1771344580149,0.0011,1992.0,1991.1,1.25558736]
[1771344580544,0.0011,1992.0,1991.2,1.443]
[1771344582378,0.0011,1992.0,1991.3,1.25546125]
[1771344583779,0.0011,1992.0,1991.3,1.75161948]
[1771344583965,0.0011,1992.0,1991.4,0.49615823]
[1771344584681,0.0011,1992.0,1991.5,1.25533517]
[1771344586558,0.0011,1992.0,1991.3,1.25546125]
[1771344588184,0.0011,1991.9,1991.3,1.25546125]
[1771344589386,0.0011,1991.9,1991.4,0.45175411]
[1771344590184,0.0011,1992.2,1991.4,0.45175411]
[1771344591683,0.0011,1992.2,1991.6,0.45175411]
[1771344591884,0.0011,1992.2,1991.7,0.541]
[1771344593583,0.0011,1992.2,1991.8,0.541]
[1771344593986,0.0011,1992.2,1991.5,0.905]
[1771344594186,0.0011,1992.2,1991.5,1.35505686]
[1771344594373,0.0011,1992.2,1991.5,2.61038761]
[1771344594681,0.0011,1992.2,1991.5,0.541]
[1771344595578,0.0011,1992.2,1991.2,1.25552253]
[1771344595579,0.47554456,1992.2,1991.2,1.25552253]
[1771344595778,0.0011,1992.2,1991.3,0.99105686]
[1771344596173,0.0011,1992.2,1991.5,7.08744566]
[1771344596512,0.0011,1992.2,1991.3,0.45005686]
[1771344596695,0.0011,1992.2,1991.4,1.446]
[1771344597314,0.0011,1992.2,1991.2,1.25552253]
[1771344597618,0.0011,1992.2,1991.3,1.7964546]
[1771344598108,0.0011,1992.2,1991.3,0.541]
[1771344598313,0.47554456,1992.2,1991.3,0.541]
[1771344598495,0.47554456,1992.2,1991.1,1.7965657]
[1771344598806,0.47554456,1992.2,1991.1,0.541]
[1771344599708,0.47444456,1992.0,1991.1,0.541]
[1771344600302,0.47444456,1992.0,1990.4,5.47411675]
[1771344600508,1.25495708,1992.1,1990.7,0.45005686]
[1771344600697,0.0011,1992.2,1991.2,7.53850252]
[1771344600899,0.0011,1992.2,1991.3,1.446]
[1771344600900,1.25600021,1992.2,1991.3,1.446]
[1771344601104,0.0011,1992.1,1991.2,0.001]
[1771344601299,0.0011,1992.1,1991.3,0.541]
[1771344601706,0.0011,1992.1,1991.3,1.79640784]
[1771344602538,0.0011,1992.1,1991.3,2.2464647]
[1771344603228,0.0011,1992.1,1991.3,1.79640784]
[1771344603537,0.0011,1992.1,1991.3,1.25540784]
[1771344603693,7.08744566,1992.0,1991.2,0.001]
[1771344604031,0.47444456,1991.8,1991.2,0.001]
[1771344604190,3.12153113,1991.7,1991.0,0.001]
[1771344604491,2.64712091,1991.6,1991.0,0.001]
[1771344604694,0.47444456,1991.7,1991.0,0.001]
[1771344604896,2.64712256,1991.6,1991.0,0.001]
[1771344605299,0.47444456,1992.0,1991.0,0.001]
[1771344605506,0.6081,1992.1,1991.0,0.001]
[1771344605507,2.64877703,1991.9,1991.0,0.001]
[1771344605700,1.25508308,1991.9,1991.0,0.001]
[1771344605900,0.0011,1992.1,1991.0,0.45105686]
[1771344606127,0.0011,1992.1,1991.1,7.53750252]
[1771344606423,1.25605962,1992.1,1991.2,0.45005686]
[1771344606623,1.25605962,1992.1,1991.0,0.001]
[1771344606825,0.0011,1992.1,1991.3,0.99005686]
[1771344607626,0.0011,1992.1,1991.4,1.25539821]
[1771344610412,0.0011,1992.1,1991.3,1.79541328]
[1771344611237,0.0011,1992.3,1991.5,7.08744566]
[1771344611417,0.0011,1992.3,1991.6,0.45005686]
[1771344611615,0.0011,1992.3,1991.7,0.541]
[1771344611826,0.0011,1992.3,1990.9,13.61829068]
[1771344611827,0.47554456,1992.3,1991.0,1.25660545]
[1771344612027,0.47444456,1992.0,1991.0,0.001]
[1771344612230,0.47444456,1991.6,1991.0,0.001]
[1771344612436,0.47444456,1991.6,1990.9,0.001]
[1771344612950,7.45377428,1991.8,1990.2,0.541]
[1771344612951,0.47444456,1991.2,1990.2,0.541]
[1771344613315,0.4644044,1991.2,1990.2,0.541]
[1771344613517,6.54877428,1991.5,1990.2,0.541]
[1771344613714,0.47444456,1991.4,1990.2,0.541]
[1771344613918,0.47444456,1991.4,1990.1,1.79721184]
[1771344613919,1.72990581,1991.3,1990.1,1.79721184]
[1771344614214,1.72990581,1991.3,1990.1,2.2472687]
[1771344614215,1.25546125,1991.3,1990.1,2.2472687]
[1771344614614,1.25546125,1991.3,1990.2,0.49964065]
[1771344614849,1.25527214,1991.6,1990.5,6.54877428]
[1771344615020,1.25527214,1991.6,1991.1,0.001]
[1771344616145,1.75245815,1991.6,1991.1,0.001]
[1771344617142,1.75245815,1991.6,1990.8,0.001]
[1771344617331,0.49718601,1991.5,1990.5,0.54]
[1771344617651,0.49718601,1991.2,1990.1,0.001]
[1771344617854,0.606,1991.3,1990.1,1.25720869]
[1771344618054,5.02141587,1991.5,1990.1,1.25720869]
[1771344618366,18.01565901,1991.8,1990.3,7.04841493]
[1771344618662,0.49718601,1991.6,1990.1,1.25720869]
[1771344620527,1.25533517,1991.5,1990.1,1.75684934]
[1771344620941,1.75252118,1991.5,1990.1,1.75684934]
[1771344621228,1.75252118,1991.5,1990.1,1.25720869]
[1771344621229,0.49718601,1991.4,1990.1,1.25720869]
[1771344621572,0.49718601,1991.4,1990.1,0.001]
[1771344621573,7.04596029,1991.4,1990.1,0.001]
[1771344621739,0.49718601,1991.2,1990.1,0.001]
[1771344621935,1.75252118,1991.5,1990.1,0.50064065]
[1771344622153,6.54877428,1991.2,1990.1,0.001]
[1771344622460,1.25533517,1991.5,1990.3,1.25609204]
[1771344623031,1.25533517,1991.5,1990.2,1.79612107]
[1771344623225,0.49718601,1991.4,1990.1,1.25718432]
[1771344623467,0.49718601,1991.4,1990.2,0.54]
[1771344623775,6.54877428,1991.2,1990.2,0.54]
[1771344623978,0.49718601,1991.1,1990.2,0.54]
[1771344624137,0.49718601,1991.1,1990.1,0.906]
[1771344624138,0.49718601,1991.0,1990.1,0.001]
[1771344624327,0.49718601,1990.8,1990.1,0.001]
[1771344624662,1.75302566,1990.7,1990.1,0.001]
[1771344625227,1.75302566,1990.7,1989.8,0.001]
[1771344625228,0.49718601,1990.3,1989.8,0.001]
[1771344625435,0.49718601,1990.3,1988.9,2.19819743]
[1771344625852,0.49718601,1990.3,1988.9,2.69783808]
[1771344626134,0.49718601,1990.3,1989.0,1.444]
[1771344626641,1.25615516,1990.2,1989.1,1.25684983]
[1771344627864,1.25615516,1990.2,1989.1,1.75649048]
[1771344628041,1.25614036,1990.3,1989.2,0.49964065]
[1771344628253,5.02398038,1990.5,1989.2,0.49964065]
[1771344628654,5.02398038,1990.5,1989.3,1.25672347]
[1771344628850,1.25596583,1990.5,1989.3,1.25672347]
[1771344629256,1.25596583,1990.5,1989.4,0.49964065]
[1771344629654,5.02340895,1990.7,1989.5,0.541]
[1771344629862,1.86271349,1990.9,1989.6,0.49964065]
[1771344630056,1.86271349,1990.9,1989.7,1.446]
[1771344630257,2.3598995,1990.9,1989.8,0.541]
[1771344630877,2.3598995,1990.9,1989.9,1.25634453]
[1771344631043,2.3598995,1990.9,1989.8,1.79735602]
[1771344631239,2.3598995,1990.9,1989.8,1.79740323]
[1771344631453,0.49718601,1990.7,1989.8,0.541]
[1771344631653,16.26589101,1990.6,1989.8,0.541]
[1771344631860,1.86271349,1990.9,1989.8,1.79740319]
[1771344632069,1.25571349,1990.9,1989.8,1.79740319]
[1771344632576,1.25571349,1990.9,1989.8,2.29704384]
[1771344633793,1.25571349,1990.9,1989.9,0.541]
[1771344634349,1.86369172,1991.0,1989.9,0.541]
[1771344634565,2.36087773,1991.0,1989.7,1.25644352]
[1771344634868,0.49718601,1990.9,1989.8,0.542]
[1771344635406,1.25577657,1990.8,1989.8,1.79840545]
[1771344637255,5.63210628,1990.9,1989.8,1.79840545]
[1771344637256,1.86475432,1990.9,1989.8,1.79840545]
[1771344638082,0.49718601,1990.8,1989.8,0.542]
[1771344638589,0.49718601,1990.7,1989.7,0.542]
[1771344639488,1.86596522,1990.6,1989.8,1.25640767]
[1771344639656,5.02353621,1990.7,1989.8,1.25640767]
[1771344639657,1.25588947,1990.7,1989.8,1.25640767]
[1771344640260,1.25588947,1990.7,1989.9,0.001]
[1771344640461,1.86576274,1990.9,1989.9,0.001]
[1771344641057,0.0011,1990.7,1989.9,0.001]
[1771344642793,0.0011,1990.7,1989.9,0.50064065]
[1771344643173,0.0011,1990.7,1989.9,6.54977428]
[1771344643378,0.0011,1990.7,1990.0,1.40464065]
[1771344643581,0.0011,1990.7,1990.1,1.79821828]
[1771344645199,5.6323243,1991.2,1990.1,1.79821828]
[1771344645200,0.0011,1991.2,1990.4,7.01197277]
[1771344645408,1.25514754,1991.8,1990.6,0.46319849]
[1771344645589,0.0011,1992.0,1990.7,2.62403814]
[1771344646111,0.0011,1992.0,1990.8,0.46319849]
[1771344646299,0.0011,1992.0,1990.9,0.543]
[1771344646480,0.0011,1992.0,1990.9,1.00619849]
[1771344646981,0.0011,1992.0,1991.0,0.46319849]
[1771344647308,0.0011,1992.0,1991.0,7.01197277]